bitfinex/quotes_ETHUSD_20240917
["timestamp","ask_amount","ask_price","bid_price","bid_amount"]
[1726540809625,4.36869,2289.1,2288.8,1.95333734]
[1726540810605,4.36842,2289.2,2288.9,3.52275234]
[1726540810806,4.36858,2289.1,2288.9,2.3124]
[1726540811622,4.36858,2289.1,2288.8,1.95333734]
[1726540811828,4.36858,2289.1,2288.9,1.2101187]
[1726540812074,4.36858,2289.1,2288.8,2.8565308]
[1726540812244,4.36858,2289.1,2288.9,1.20972877]
[1726540812399,4.36858,2289.1,2288.8,2.8565308]
[1726540812604,0.06458801,2289.0,2288.9,1.20953773]
[1726540813435,0.06458801,2289.0,2288.8,2.8565308]
[1726540815530,4.43331801,2289.0,2288.8,2.8565308]
[1726540815726,4.43331801,2289.0,2288.8,1.95333734]
[1726540829968,8.80216801,2289.0,2288.8,1.95333734]
[1726540830271,4.43331801,2289.0,2288.8,1.95333734]
[1726540830472,8.80219801,2289.0,2288.8,1.95333734]
[1726540831376,8.80216801,2289.0,2288.7,2.3124]
[1726540831587,4.36891,2288.9,2288.7,2.3124]
[1726540831739,0.06241215,2288.8,2288.7,2.3124]
[1726540832176,0.10748935,2288.8,2288.7,2.3124]
[1726540835667,0.10748935,2288.8,2288.7,3.17580883]
[1726540837384,0.10748935,2288.8,2288.7,4.38437226]
[1726540837864,0.10760252,2288.8,2288.7,6.19727578]
[1726540838177,4.36873,2289.0,2288.7,6.19727578]
[1726540838491,4.36873,2289.0,2288.8,1.95333734]
[1726540838782,0.10773523,2288.9,2288.8,1.95333734]
[1726540839276,0.10773523,2288.9,2288.8,2.85733672]
[1726540840345,0.10773523,2288.9,2288.8,1.95333734]
[1726540845550,0.10773523,2288.9,2288.8,3.16278034]
[1726540845981,0.10773523,2288.9,2288.8,1.95333734]
[1726540846595,0.10773523,2288.9,2288.8,20.10387764]
[1726540846804,7.47,2289.4,2289.3,1.95333734]
[1726540847099,7.47,2289.4,2289.3,4.43103734]
[1726540847100,0.09901741,2289.4,2289.3,4.43103734]
[1726540847299,0.09901741,2289.4,2289.3,11.82036236]
[1726540847455,0.0382295,2289.7,2289.3,6.4082955]
[1726540847656,4.4057295,2289.7,2289.4,3.02118502]
[1726540847994,4.4057295,2289.7,2289.2,2.86274782]
[1726540848296,4.4057295,2289.7,2289.3,0.58627478]
[1726540848498,4.4057295,2289.7,2289.4,1.95333734]
[1726540848660,0.09727066,2289.6,2289.4,1.95333734]
[1726540850495,0.09727066,2289.6,2289.3,0.58627478]
[1726540850695,0.09727066,2289.6,2289.1,6.38711048]
[1726540850696,4.36779,2289.5,2289.1,5.4777]
[1726540850994,4.36779,2289.5,2289.1,7.43103734]
[1726540851167,0.09883689,2289.4,2289.1,7.43103734]
[1726540851376,0.09883689,2289.4,2289.3,1.95333734]
[1726540851671,0.09883689,2289.4,2289.3,2.89177481]
[1726540851878,4.4057295,2289.7,2289.3,4.0993606]
[1726540852103,4.4057295,2289.7,2289.5,1.95333734]
[1726540852296,0.0382295,2289.7,2289.6,2.4122]
[1726540852594,0.0382295,2289.7,2289.6,5.85748941]
[1726540852757,0.0382295,2289.7,2289.6,7.06425147]
[1726540852957,0.12956289,2289.7,2289.6,11.51916439]
[1726540853213,0.12956289,2289.7,2289.6,17.69675318]
[1726540853394,0.12956289,2289.7,2289.6,19.15616366]
[1726540853728,0.0382295,2289.7,2289.6,19.15616366]
[1726540854507,0.005,2289.8,2289.6,19.15616366]
[1726540854508,0.005,2289.8,2289.7,14.21776]
[1726540854709,0.005,2289.8,2289.7,21.87201186]
[1726540854912,0.09651745,2289.8,2289.7,21.87201186]
[1726540855113,0.005,2289.8,2289.7,21.87201186]
[1726540855608,0.005,2289.8,2289.7,26.78939186]
[1726540855781,7.5082295,2290.3,2289.7,26.78939186]
[1726540855782,7.5082295,2290.3,2290.2,9.73703]
[1726540855984,0.0382295,2290.3,2290.2,17.03050034]
[1726540856314,0.0382295,2290.3,2290.2,18.23428856]
[1726540856487,0.1272875,2290.3,2290.2,17.03050034]
[1726540857395,0.1272875,2290.3,2290.2,10.710733]
[1726540857718,0.1272875,2290.3,2290.2,17.03050034]
[1726540857870,0.1272875,2290.3,2290.2,12.66407034]
[1726540858673,0.1272875,2290.3,2290.2,16.66407034]
[1726540860874,0.1272875,2290.3,2290.2,7.344303]
[1726540861080,0.1272875,2290.3,2290.2,9.29764034]
[1726540862012,0.1272875,2290.3,2290.2,13.66407034]
[1726540862193,0.1272875,2290.3,2290.2,9.29764034]
[1726540862393,0.1272875,2290.3,2290.2,5.29764034]
[1726540863016,0.1272875,2290.3,2289.7,4.91735]
[1726540863017,0.1272875,2290.3,2290.0,2.4524]
[1726540863218,0.1272875,2290.3,2290.1,3.0]
[1726540863589,4.4935275,2290.3,2290.1,3.0]
[1726540864118,0.1272875,2290.3,2290.1,3.0]
[1726540864518,4.4935375,2290.3,2290.1,3.0]
[1726540864820,4.4935375,2290.3,2289.9,5.95333734]
[1726540864821,4.36658,2290.2,2289.9,5.95333734]
[1726540865029,0.08712604,2290.1,2289.9,1.95333734]
[1726540865379,0.08712604,2290.1,2289.9,2.81764807]
[1726540865583,4.4044795,2290.3,2289.9,2.81764807]
[1726540865818,0.08700943,2290.2,2290.1,1.95333734]
[1726540867196,0.17401886,2290.2,2290.1,1.95333734]
[1726540868184,4.54044886,2290.2,2290.1,1.95333734]
[1726540871325,4.54044886,2290.2,2289.8,2.3225]
[1726540871326,4.36681,2290.0,2289.8,2.3225]
[1726540871526,4.36681,2290.0,2289.9,1.95333734]
[1726540875020,4.45196903,2290.0,2289.9,1.95333734]
[1726540878714,4.45196903,2290.0,2289.9,2.38744107]
[1726540878929,0.08515903,2290.0,2289.9,2.38744107]
[1726540879136,0.08515903,2290.0,2289.9,4.87404107]
[1726540879663,4.45343943,2290.2,2289.9,4.87404107]
[1726540879830,4.45343943,2290.2,2290.1,1.95333734]
[1726540881285,11.83576,2290.6,2290.1,2.44074145]
[1726540881286,3.55688484,2290.5,2290.1,2.44074145]
[1726540881489,3.0382295,2291.0,2289.9,0.43410373]
[1726540881490,0.0382295,2291.0,2290.6,5.4866]
[1726540881707,0.0382295,2291.0,2290.9,1.95333734]
[1726540882816,0.0382295,2291.0,2290.7,5.93857134]
[1726540882992,0.0382295,2291.0,2290.7,4.95333734]
[1726540883190,0.06460015,2290.9,2290.7,4.95333734]
[1726540883456,0.06460015,2290.9,2290.7,1.95333734]
[1726540883620,0.06460015,2290.9,2290.4,3.0]
[1726540883818,0.06460015,2290.9,2290.4,2.63861234]
[1726540883819,4.42971015,2290.9,2290.4,2.63861234]
[1726540884019,4.42971015,2290.9,2290.3,11.07824782]
[1726540884360,8.79492015,2290.9,2290.3,11.07824782]
[1726540884534,4.36535,2290.8,2290.3,6.71209782]
[1726540884735,4.36535,2290.8,2290.4,4.0]
[1726540884937,0.06475313,2290.7,2290.4,4.0]
[1726540885338,4.36511,2290.9,2290.3,12.9228406]
[1726540885629,8.73036,2290.9,2290.4,0.85566106]
[1726540885971,0.06588158,2290.8,2290.4,0.85566106]
[1726540887046,0.06588158,2290.8,2290.5,4.22549782]
[1726540887250,0.06588158,2290.8,2290.6,0.50811589]
[1726540889462,0.06588158,2290.8,2290.7,10.94196782]
[1726540889670,0.06365594,2290.8,2290.7,10.94196782]
[1726540889829,0.0382295,2291.0,2290.7,10.94196782]
[1726540890025,0.06406162,2290.9,2290.7,10.94196782]
[1726540890230,0.06406162,2290.9,2290.8,1.58156437]
[1726540895267,0.06406162,2290.9,2290.8,5.94684437]
[1726540896243,0.06406162,2290.9,2290.8,10.39941985]
[1726540896560,0.0382295,2291.0,2290.8,10.39941985]
[1726540896561,0.0382295,2291.0,2290.9,11.21988]
[1726540896767,0.0382295,2291.0,2290.9,17.91222216]
[1726540896979,0.0382295,2291.0,2290.9,20.91222216]
[1726540897145,0.0382295,2291.0,2290.9,22.11566413]
[1726540897659,0.0382295,2291.0,2290.9,26.11566413]
[1726540898452,0.0382295,2291.0,2290.9,27.92022057]
[1726540900262,0.09585851,2291.0,2290.9,27.92022057]
[1726540900640,0.09585851,2291.0,2290.9,21.75049301]
[1726540900869,0.09585851,2291.0,2290.9,20.54713216]
[1726540901740,0.09585851,2291.0,2290.9,18.05743216]
[1726540901945,0.09585851,2291.0,2290.9,13.69234216]
[1726540902222,0.09585851,2291.0,2290.9,18.05743216]
[1726540902576,0.09585851,2291.0,2290.9,13.69234216]
[1726540903838,0.09585851,2291.0,2290.9,9.69234216]
[1726540906046,0.09585851,2291.0,2290.9,14.05743216]
[1726540909848,0.09585851,2291.0,2290.9,18.05743216]
[1726540910167,0.09585851,2291.0,2290.9,20.43303216]
[1726540910971,0.09585851,2291.0,2290.9,24.79812216]
[1726540912460,0.09585851,2291.0,2290.9,20.43303216]
[1726540912782,0.09585851,2291.0,2290.9,16.43303216]
[1726540915085,0.09585851,2291.0,2290.9,20.43303216]
[1726540917645,0.09585851,2291.0,2290.9,24.79812216]
[1726540918458,0.09585851,2291.0,2290.9,20.43303216]
[1726540919246,0.09585851,2291.0,2290.9,24.79812216]
[1726540919586,0.09585851,2291.0,2290.9,20.43303216]
[1726540919747,0.09585851,2291.0,2290.9,24.79812216]
[1726540920453,0.09585851,2291.0,2290.9,20.43303216]
[1726540920679,0.09585851,2291.0,2290.9,24.79812216]
[1726540921005,0.09585851,2291.0,2290.9,20.43303216]
[1726540921474,0.09585851,2291.0,2290.9,24.79812216]
[1726540921863,0.09585851,2291.0,2290.9,20.57262434]
[1726540922068,0.09585851,2291.0,2290.9,18.15652441]
[1726540922366,0.09585851,2291.0,2290.9,22.52161441]
[1726540923379,0.09585851,2291.0,2290.9,25.55255781]
[1726540925305,0.09585851,2291.0,2290.9,26.45830149]
[1726540926772,0.09585851,2291.0,2290.9,22.09321149]
[1726540926976,0.09585851,2291.0,2290.9,26.45830149]
[1726540927195,0.09585851,2291.0,2290.9,19.71761149]
[1726540927608,0.0382295,2291.0,2290.9,10.93668708]
[1726540927904,0.0382295,2291.0,2290.9,11.97993347]
[1726540928107,0.0382295,2291.0,2290.9,12.88567715]
[1726540928269,0.09613854,2291.0,2290.9,11.97993347]
[1726540928463,0.09613854,2291.0,2290.9,12.88567715]
[1726540928669,0.09613854,2291.0,2290.9,16.34502347]
[1726540928869,0.09613854,2291.0,2290.9,17.25076715]
[1726540929309,0.09613854,2291.0,2290.9,19.51130254]
[1726540929614,11.83409,2291.5,2291.0,7.36481]
[1726540929910,4.36415,2291.4,2291.1,3.0309434]
[1726540930114,4.36454,2291.2,2291.0,3.0]
[1726540931102,0.05657881,2291.1,2291.0,3.0]
[1726540931313,0.05657881,2291.1,2291.0,4.21974441]
[1726540932210,4.36454,2291.2,2291.0,4.21974441]
[1726540932369,0.05546615,2291.1,2291.0,3.0]
[1726540932569,0.05546615,2291.1,2291.0,6.05058415]
[1726540933070,0.05573107,2291.1,2291.0,6.05058415]
[1726540933464,4.36434,2291.3,2291.0,6.05058415]
[1726540933665,0.05573107,2291.1,2291.0,3.0]
[1726540933880,4.36434,2291.3,2291.0,6.05075031]
[1726540934110,4.36434,2291.3,2291.1,1.22032962]
[1726540934309,4.36434,2291.3,2291.0,5.61148587]
[1726540934464,0.05614032,2291.2,2291.1,5.00026049]
[1726540934810,4.36434,2291.3,2291.1,5.00026049]
[1726540934983,4.36434,2291.3,2291.2,1.22050817]
[1726540935869,4.36384,2291.6,2291.2,2.09860658]
[1726540936070,4.36384,2291.6,2291.3,3.16952934]
[1726540936412,8.7277,2291.6,2291.3,1.94899007]
[1726540937404,4.36384,2291.6,2291.3,2.75882449]
[1726540938465,0.05516836,2291.5,2291.3,2.75882449]
[1726540940496,4.4018295,2291.7,2291.3,2.75882449]
[1726540940715,0.05682483,2291.4,2291.3,2.75882449]
[1726540941020,4.4018295,2291.7,2291.3,5.81104794]
[1726540941169,4.4018295,2291.7,2291.4,1.14013286]
[1726540941371,4.4018295,2291.7,2291.3,2.75882449]
[1726540941991,0.05708109,2291.6,2291.4,1.22087445]
[1726540942272,0.05708109,2291.6,2291.3,2.75882449]
[1726540942508,0.05708109,2291.6,2291.4,1.22095873]
[1726540942807,0.05708109,2291.6,2291.3,2.75882449]
[1726540943017,0.05708109,2291.6,2291.4,2.36107865]
[1726540943214,0.05708109,2291.6,2291.4,1.14013286]
[1726540943728,4.42086109,2291.6,2291.4,1.14013286]
[1726540945392,4.42086109,2291.6,2291.3,2.75882449]
[1726540945596,4.42086109,2291.6,2291.4,1.22087224]
[1726540945795,4.42086109,2291.6,2291.3,2.75882449]
[1726540946015,4.42086109,2291.6,2291.4,1.22089088]
[1726540946221,4.42086109,2291.6,2291.3,2.75882449]
[1726540946432,4.42086109,2291.6,2291.4,1.22093035]
[1726540946735,4.42086109,2291.6,2291.3,1.94899007]
[1726540947027,4.42086109,2291.6,2291.4,1.22091585]
[1726540947253,4.42086109,2291.6,2291.3,2.89522106]
[1726540947424,4.42086109,2291.6,2291.4,1.22088915]
[1726540947615,4.42086109,2291.6,2291.3,1.94899007]
[1726540947840,4.42086109,2291.6,2291.4,1.22090315]
[1726540948120,4.36509,2290.9,2290.8,0.90659569]
[1726540948338,4.36509,2290.9,2290.8,3.05403893]
[1726540948482,4.36509,2290.9,2290.8,1.22161557]
[1726540948483,4.41974448,2290.9,2290.8,1.22161557]
[1726540948682,4.3653,2290.8,2290.6,0.90659569]
[1726540948919,0.05465448,2290.9,2290.7,7.25918966]
[1726540949120,4.36496,2291.0,2290.8,3.05379959]
[1726540949431,4.36496,2291.0,2290.9,1.94899007]
[1726540949751,4.36489,2291.1,2290.9,1.94899007]
[1726540950019,4.3649,2291.0,2290.9,1.94899007]
[1726540952324,4.3651,2290.9,2290.7,1.94899007]
[1726540953028,0.05360373,2290.8,2290.7,1.94899007]
[1726540955073,4.41888373,2290.8,2290.7,1.94899007]
[1726540957082,0.05360373,2290.8,2290.7,1.94899007]
[1726540957250,0.05360373,2290.8,2290.7,2.39060908]
[1726540962338,4.41888373,2290.8,2290.7,2.39060908]
[1726540962504,4.41888373,2290.8,2290.7,1.94899007]
[1726540963973,0.05360373,2290.8,2290.7,1.94899007]
[1726540974557,0.05360373,2290.8,2290.5,2.4672]
[1726540974699,0.05360373,2290.8,2290.6,1.94899007]
[1726540978257,0.0382295,2291.7,2290.8,3.0]
[1726540978547,0.0382295,2291.7,2291.6,7.25009007]
[1726540978700,0.0382295,2292.4,2291.4,5.3011]
[1726540978701,4.36352,2291.8,2291.4,5.3011]
[1726540978900,4.36333,2291.9,2291.4,5.3011]
[1726540978901,4.36333,2291.9,2291.4,5.96460814]
[1726540979099,4.36293,2292.1,2291.4,7.91359821]
[1726540979336,4.36311,2292.0,2291.5,0.59646081]
[1726540979514,4.36311,2292.0,2291.5,4.59646081]
[1726540980420,4.36293,2292.1,2291.5,4.0]
[1726540980814,8.7259,2292.1,2291.5,4.0]
[1726540981013,4.36293,2292.1,2291.5,4.0]
[1726540981240,4.36293,2292.1,2291.4,7.25009007]
[1726540981412,8.72585,2292.1,2291.4,7.25009007]
[1726540981755,0.872585,2292.0,2291.4,7.25009007]
[1726540982353,5.235645,2292.0,2291.4,4.25009007]
[1726540986460,5.235645,2292.0,2291.6,1.94899007]
[1726540990242,0.872585,2292.0,2291.6,1.94899007]
[1726540992046,4.36292,2292.1,2291.6,6.31266007]
[1726540992934,4.36292,2292.1,2291.8,1.94899007]
[1726540994031,0.0382295,2292.4,2291.6,4.36367]
[1726540994272,4.36354,2291.8,2291.3,4.36432]
[1726540994429,4.36323,2291.9,2291.5,4.36393]
[1726540994630,4.363,2292.0,2291.5,6.31292007]
[1726540994944,4.363,2292.0,2291.5,6.31284007]
[1726540994945,4.854296,2292.0,2291.5,6.31284007]
[1726540995264,4.854296,2292.0,2291.5,10.67667007]
[1726540995464,4.854296,2292.0,2291.7,1.94899007]
[1726540995664,0.9217256,2291.9,2291.7,1.94899007]
[1726540996194,0.491296,2292.0,2291.7,1.94899007]
[1726540996360,4.36259,2292.3,2291.7,6.31245007]
[1726540996684,4.3627,2292.2,2291.7,6.31245007]
[1726540996888,5.26943425,2292.2,2291.7,6.31245007]
[1726540997100,5.26943425,2292.2,2291.7,10.67593007]
[1726540997273,0.90673425,2292.2,2291.9,1.94899007]
[1726540997658,0.0382295,2292.4,2292.1,1.94899007]
[1726540999996,0.0382295,2292.4,2291.9,4.36308]
[1726541000167,4.4004795,2292.4,2291.9,6.31207007]
[1726541000355,4.36252,2292.3,2291.9,1.94899007]
[1726541000991,0.91448345,2292.4,2291.9,1.94899007]
[1726541000992,5.27672345,2292.4,2291.9,1.94899007]
[1726541002349,4.36244,2292.3,2291.9,1.94899007]
[1726541003153,4.36244,2292.3,2291.9,3.24406008]
[1726541004467,4.36244,2292.3,2291.9,1.94899007]
[1726541004792,4.36264,2292.2,2291.7,11.00179]
[1726541004965,4.36264,2292.2,2291.8,1.94899007]
[1726541005464,4.36264,2292.2,2291.8,6.31236007]
[1726541006096,4.36244,2292.3,2291.8,6.31236007]
[1726541006298,8.725,2292.3,2291.8,6.31236007]
[1726541006598,4.36244,2292.3,2291.8,6.31236007]
[1726541006804,8.72497,2292.3,2291.8,6.31236007]
[1726541008754,8.72497,2292.3,2291.7,6.63833]
[1726541008755,4.36276,2292.2,2291.7,2.2749]
[1726541008960,3.87631995,2292.3,2291.5,2.388]
[1726541009181,3.87631995,2292.3,2291.2,0.4381]
[1726541009182,4.36358,2291.7,2291.3,4.33699007]
[1726541009460,4.36358,2291.7,2291.5,1.94899007]
[1726541018933,4.36329,2291.9,2291.5,6.31293007]
[1726541019225,4.36329,2291.9,2291.5,1.94899007]
[1726541019441,5.982758,2292.0,2291.7,1.94899007]
[1726541019442,4.36316,2292.0,2291.7,1.94899007]
[1726541019598,8.72627,2292.0,2291.7,1.94899007]
[1726541019780,10.345897,2292.0,2291.7,1.94899007]
[1726541020093,4.36322,2291.9,2291.7,1.94899007]
[1726541020522,4.36311,2292.0,2291.7,4.21539007]
[1726541022296,4.36309,2292.0,2291.7,4.21539007]
[1726541022620,4.36309,2292.0,2291.7,5.07331408]
[1726541023330,4.36276,2292.2,2291.7,9.43683408]
[1726541023529,8.72549,2292.2,2291.7,9.43683408]
[1726541023816,4.36273,2292.2,2291.7,9.43683408]
[1726541024239,8.72545,2292.2,2291.7,9.43683408]
[1726541024581,4.36272,2292.2,2291.7,9.43683408]
[1726541025429,8.72545,2292.2,2291.7,9.43683408]
[1726541025726,4.36272,2292.2,2291.7,9.43683408]
[1726541026904,8.72545,2292.2,2291.7,9.43683408]
[1726541028527,4.36282,2292.1,2291.7,5.07331408]
[1726541028714,4.36282,2292.1,2291.7,4.21539007]
[1726541028881,4.40381036,2292.1,2291.7,4.21539007]
[1726541034687,4.40381036,2292.1,2291.7,2.2664]
[1726541034688,4.36328,2291.9,2291.7,2.2664]
[1726541037755,4.36302,2292.0,2291.7,2.2664]
[1726541039182,8.72611,2292.0,2291.7,2.2664]
[1726541039695,4.36302,2292.0,2291.7,2.2664]
[1726541040198,8.72611,2292.0,2291.7,2.2664]
[1726541040398,4.36338,2291.8,2291.5,5.4412]
[1726541040696,4.36338,2291.8,2291.3,5.72839572]
[1726541040697,4.36376,2291.6,2291.3,4.39019007]
[1726541042399,4.36376,2291.6,2291.5,1.94899007]
[1726541042771,0.872611,2292.0,2291.6,2.3513]
[1726541042772,4.36322,2291.9,2291.6,2.3513]
[1726541043655,4.36322,2291.9,2291.7,1.94899007]
[1726541046659,4.36322,2291.9,2291.7,2.81541308]
[1726541046912,4.36302,2292.0,2291.7,2.81541308]
[1726541047096,4.36279,2292.2,2291.7,2.81541308]
[1726541047097,4.36284,2292.1,2291.7,2.81541308]
[1726541047476,4.40382745,2292.1,2291.7,2.81541308]
[1726541047999,4.40382745,2292.1,2291.7,7.17880308]
[1726541048208,4.40382745,2292.1,2291.8,2.3078]
[1726541048702,4.36284,2292.1,2291.8,2.3078]
[1726541050515,4.36279,2292.2,2291.9,1.94899007]
[1726541050804,4.40389,2292.2,2291.9,1.94899007]
[1726541052678,8.76663,2292.2,2291.9,1.94899007]
[1726541053088,8.76656,2292.2,2291.9,1.94899007]
[1726541053607,4.40382,2292.2,2291.9,1.94899007]
[1726541054017,8.76655,2292.2,2291.9,1.94899007]
[1726541054319,8.76655,2292.2,2291.9,3.03615371]
[1726541054766,4.40382,2292.2,2291.9,3.03615371]
[1726541055501,8.76654,2292.2,2291.9,3.03615371]
[1726541055686,4.40382,2292.2,2291.9,3.03615371]
[1726541059090,4.36272,2292.2,2291.9,3.03615371]
[1726541060685,4.4006295,2292.4,2292.2,2.3404]
[1726541061024,0.0382295,2292.4,2292.2,2.3404]
[1726541063921,4.4004995,2292.4,2292.2,2.3404]
[1726541071362,4.36243,2292.3,2292.2,2.3404]
[1726541071695,4.36243,2292.3,2292.0,2.3617]
[1726541071895,4.36267,2292.2,2292.0,2.3617]
[1726541072608,4.36243,2292.3,2292.0,2.3617]
[1726541072609,4.36281,2292.1,2292.0,2.3617]
[1726541073026,4.36281,2292.1,2291.9,1.94899007]
[1726541073839,4.36267,2292.2,2291.9,1.94899007]
[1726541074132,4.36267,2292.2,2292.0,2.392]
[1726541077969,4.36245,2292.3,2292.1,1.94899007]
[1726541078159,4.36245,2292.3,2292.1,2.90647848]
[1726541078361,4.36245,2292.3,2292.1,1.94899007]
[1726541081053,4.4004695,2292.4,2292.1,1.94899007]
[1726541081498,4.4004695,2292.4,2292.0,2.392]
[1726541081804,5.23873295,2292.3,2292.0,2.392]
[1726541082085,4.36247,2292.3,2292.0,2.392]
[1726541082999,0.0382295,2292.4,2292.0,8.70397007]
[1726541083207,4.4004795,2292.4,2292.0,8.70397007]
[1726541084067,4.4004795,2292.4,2292.0,4.34099007]
[1726541085763,4.4004795,2292.4,2292.0,2.392]
[1726541085764,4.36245,2292.3,2292.0,2.392]
[1726541088816,4.36292,2292.1,2291.8,3.30999569]
[1726541089103,4.36309,2292.0,2291.8,2.4034]
[1726541090496,4.36283,2292.1,2291.9,3.16131142]
[1726541090690,4.36262,2292.2,2291.9,1.94899007]
[1726541091139,4.36262,2292.2,2292.0,2.4034]
[1726541092196,4.36252,2292.3,2292.0,2.4034]
[1726541093320,4.4006295,2292.4,2291.6,1.82360782]
[1726541093321,1.94899007,2292.1,2291.6,0.90659569]
[1726541093532,1.94899007,2292.1,2291.4,0.90770371]
[1726541093533,1.94899007,2291.8,2291.4,0.90770371]
[1726541093744,4.36452,2291.2,2290.9,2.2563]
[1726541093947,4.36386,2291.6,2291.1,1.94899007]
[1726541094150,4.36386,2291.6,2291.2,3.4700058]
[1726541094298,4.36386,2291.6,2291.2,2.2563]
[1726541094745,4.36386,2291.6,2291.3,1.94899007]
[1726541095048,8.72775,2291.6,2291.3,1.94899007]
[1726541095902,4.36398,2291.5,2291.2,2.2563]
[1726541098520,4.36386,2291.6,2291.3,1.94899007]
[1726541099151,8.72779,2291.6,2291.3,1.94899007]
[1726541099642,4.36386,2291.6,2291.3,1.94899007]
[1726541100032,4.36386,2291.6,2291.2,2.2563]
[1726541100340,4.800246,2291.6,2291.2,2.2563]
[1726541101124,4.3642,2291.4,2291.2,2.2563]
[1726541101338,4.3642,2291.4,2291.3,1.94899007]
[1726541101723,8.72778,2291.6,2291.3,1.94899007]
[1726541101924,4.36386,2291.6,2291.3,1.94899007]
[1726541102157,4.36395,2291.5,2291.3,1.94899007]
[1726541102467,8.72773,2291.6,2291.3,1.94899007]
[1726541102636,4.36386,2291.6,2291.3,2.36951908]
[1726541103152,0.45695613,2291.5,2291.3,2.36951908]
[1726541103360,4.82103613,2291.5,2290.9,2.4768]
[1726541103569,4.36448,2291.3,2291.0,3.0]
[1726541103722,4.36448,2291.3,2291.0,4.17909601]
[1726541103917,4.36448,2291.3,2291.1,1.94899007]
[1726541106525,4.36452,2291.2,2291.0,3.0]
[1726541106723,4.36452,2291.2,2291.0,4.94899007]
[1726541108165,0.45695613,2291.5,2291.0,5.69156908]
[1726541108166,4.36419,2291.4,2291.0,5.69156908]
[1726541108365,4.36419,2291.4,2291.2,1.94899007]
[1726541110451,4.36419,2291.4,2291.0,4.94899007]
[1726541110792,4.36419,2291.4,2291.0,6.56460108]
[1726541111150,4.36443,2291.3,2291.0,6.56460108]
[1726541111454,4.36443,2291.3,2291.0,4.94899007]
[1726541114992,4.36419,2291.4,2291.2,1.94899007]
[1726541115178,4.82091613,2291.5,2291.2,4.29029007]
[1726541115549,0.45695613,2291.5,2291.4,1.94899007]
[1726541116086,0.45695613,2291.5,2291.4,4.29029007]
[1726541116995,0.45695613,2291.5,2291.4,11.65443007]
[1726541117178,4.36312,2292.0,2291.4,8.65443007]
[1726541117379,0.4569194,2291.8,2291.7,1.94899007]
[1726541118103,0.4569194,2291.8,2291.5,5.82323051]
[1726541119754,0.4569194,2291.8,2291.5,10.18716051]
[1726541119948,0.4569194,2291.8,2291.7,6.5926705]
[1726541120242,7.47,2292.1,2291.7,11.04336191]
[1726541120360,7.47,2292.1,2292.0,4.2213705]
[1726541120559,0.45688551,2292.2,2292.0,4.2213705]
[1726541121054,0.45688551,2292.2,2291.8,10.9560005]
[1726541121254,0.45688551,2292.2,2291.8,12.61322815]
[1726541121708,0.45688551,2292.2,2291.8,8.24989815]
[1726541122369,0.45688551,2292.2,2292.0,4.2213705]
[1726541123369,0.45688551,2292.2,2291.8,2.3713]
[1726541123570,4.363,2292.0,2291.5,5.3713]
[1726541123770,4.363,2292.0,2291.1,2.3713]
[1726541123771,4.36396,2291.5,2291.1,2.3713]
[1726541124027,4.36396,2291.5,2291.2,4.0]
[1726541124225,4.36396,2291.5,2291.1,2.3713]
[1726541124987,4.36396,2291.5,2291.1,5.3713]
[1726541126017,4.36396,2291.5,2291.2,4.2213705]
[1726541129383,4.36367,2291.7,2291.2,4.2213705]
[1726541131080,4.36378,2291.6,2291.2,4.2213705]
[1726541131684,4.36367,2291.7,2291.4,4.2213705]
[1726541131886,12.26961,2291.9,2291.4,6.5146705]
[1726541131887,4.36342,2291.8,2291.4,6.5146705]
[1726541132211,11.83331,2291.9,2291.7,2.2933]
[1726541132212,7.47,2291.9,2291.7,2.2933]
[1726541132395,4.36295,2292.1,2291.8,5.30921255]
[1726541132578,4.36295,2292.1,2291.8,4.2213705]
[1726541133114,8.72586,2292.1,2291.8,4.2213705]
[1726541133698,8.72586,2292.1,2291.7,2.2933]
[1726541134710,4.36291,2292.1,2291.7,2.2933]
[1726541135347,4.36353,2291.8,2291.4,6.5108705]
[1726541139936,4.36366,2291.7,2291.4,6.5108705]
[1726541140259,4.800226,2291.6,2291.3,3.0]
[1726541140444,4.82016766,2291.9,2291.4,4.2213705]
[1726541140744,4.36357,2291.7,2291.5,0.42213705]
[1726541141039,4.36357,2291.7,2291.2,13.8753905]
[1726541141193,4.36357,2291.7,2291.3,1.20191061]
[1726541141400,4.36357,2291.7,2291.2,13.8753905]
[1726541141626,4.36357,2291.7,2291.2,15.92586967]
[1726541143522,4.36357,2291.7,2291.4,4.2213705]
[1726541145931,4.36339,2291.8,2291.4,4.2213705]
[1726541146654,8.72693,2291.8,2291.4,4.2213705]
[1726541157371,4.36366,2291.7,2291.4,4.2213705]
[1726541158092,4.36366,2291.7,2291.5,1.94853959]
[1726541161688,5.28205677,2291.7,2291.5,1.94853959]
[1726541162507,0.91839677,2291.7,2291.1,0.90593246]
[1726541162815,0.91839677,2291.7,2291.0,5.19897205]
[1726541162816,4.36423,2291.4,2291.0,5.19897205]
[1726541162973,4.36423,2291.4,2291.2,1.94853959]
[1726541164466,4.36454,2291.2,2291.0,3.0]
[1726541164670,4.36454,2291.2,2290.8,0.90593246]
[1726541164671,4.36493,2291.0,2290.8,0.90593246]
[1726541164876,4.36493,2291.0,2290.7,5.71627657]
[1726541164877,4.36493,2291.0,2290.7,1.94853959]
[1726541165071,4.36493,2291.0,2290.6,3.25043246]
[1726541165072,4.36509,2290.9,2290.8,5.20465966]
[1726541165372,4.36509,2290.9,2290.8,4.0]
[1726541165521,4.36509,2290.9,2290.7,1.94853959]
[1726541165821,4.36528,2290.8,2290.7,1.94853959]
[1726541167221,4.36528,2290.8,2290.5,3.75469861]
[1726541167539,4.36528,2290.8,2290.5,1.94853959]
[1726541168041,4.36528,2290.8,2290.4,6.61614982]
[1726541168235,5.3256182,2290.8,2290.4,6.61614982]
[1726541168379,4.36567,2290.6,2290.4,6.61614982]
[1726541170228,4.36528,2290.8,2290.4,6.61614982]
[1726541170425,8.73013,2291.0,2290.6,4.22554982]
[1726541170843,4.36513,2290.9,2290.7,2.2643]
[1726541171042,4.36504,2291.0,2290.7,2.2643]
[1726541173100,4.36504,2291.0,2290.7,3.34985698]
[1726541174344,4.36504,2291.0,2290.7,2.2643]
[1726541174937,4.36472,2291.1,2290.7,2.2643]
[1726541175312,8.72954,2291.1,2290.5,2.2557]
[1726541175517,4.36472,2291.1,2290.5,9.62155]
[1726541175850,4.36428,2291.4,2290.5,5.80050588]
[1726541176148,8.73033,2290.9,2290.4,4.22554982]
[1726541176298,9.603363,2290.9,2290.4,4.22554982]